bitfinex-derivatives/quotes_BTCF0:USTF0_20251030
["timestamp","ask_amount","ask_price","bid_price","bid_amount"]
[1761826670969,1.3179566,109390.0,109380.0,0.02461856]
[1761826671168,1.6779566,109390.0,109380.0,0.02461856]
[1761826671569,1.6779566,109390.0,109380.0,0.03801856]
[1761826672478,1.6779566,109390.0,109380.0,0.02461856]
[1761826674076,1.6779566,109390.0,109380.0,0.03801856]
[1761826674276,1.6779566,109390.0,109380.0,0.02461856]
[1761826674775,1.777906,109390.0,109380.0,0.02461856]
[1761826675168,1.777906,109390.0,109380.0,0.03801856]
[1761826675970,2.377906,109390.0,109380.0,0.02461856]
[1761826677179,2.387906,109390.0,109380.0,0.02461856]
[1761826677479,2.377906,109390.0,109380.0,0.02461856]
[1761826677669,2.021606,109390.0,109380.0,0.02461856]
[1761826677875,1.8148094,109390.0,109380.0,0.03801856]
[1761826678070,1.6032966,109390.0,109380.0,0.03801856]
[1761826678275,1.9214566,109390.0,109380.0,0.03801856]
[1761826678672,1.9214966,109390.0,109380.0,0.08315856]
[1761826679082,1.9214966,109390.0,109380.0,0.08591856]
[1761826679083,0.9932966,109390.0,109380.0,0.08591856]
[1761826679283,1.4415366,109390.0,109380.0,0.110429]
[1761826680074,1.23474,109390.0,109380.0,0.110429]
[1761826680270,1.6415366,109390.0,109380.0,0.062529]
[1761826680987,1.5115366,109390.0,109380.0,0.062529]
[1761826681288,1.8115366,109390.0,109380.0,0.062529]
[1761826681681,1.8115366,109390.0,109380.0,0.110429]
[1761826681682,1.43474,109390.0,109380.0,0.110429]
[1761826681875,1.6414966,109390.0,109380.0,0.110429]
[1761826682075,1.5314566,109390.0,109380.0,0.110429]
[1761826682289,1.8614566,109390.0,109380.0,0.02461856]
[1761826682579,1.8614566,109390.0,109380.0,0.06265947]
[1761826682772,1.5432966,109390.0,109380.0,0.11055947]
[1761826682978,1.8614166,109390.0,109380.0,0.11055947]
[1761826683178,1.65462,109390.0,109380.0,0.11055947]
[1761826683480,1.8614166,109390.0,109380.0,0.11055947]
[1761826683682,1.8614166,109390.0,109380.0,0.05201947]
[1761826683878,1.8614166,109390.0,109330.0,0.12372634]
[1761826683879,0.091464,109340.0,109330.0,0.12372634]
[1761826684082,0.091464,109340.0,109330.0,0.09469512]
[1761826684387,0.9143062,109380.0,109350.0,0.04514]
[1761826684388,0.4571531,109380.0,109350.0,0.04514]
[1761826684582,0.4571531,109380.0,109360.0,0.06897914]
[1761826684583,0.3608,109370.0,109360.0,0.06897914]
[1761826684782,1.2683966,109370.0,109360.0,0.05772597]
[1761826685081,1.4965966,109370.0,109360.0,0.06048597]
[1761826685278,1.2898,109370.0,109360.0,0.06048597]
[1761826685484,1.7865966,109370.0,109360.0,0.06048597]
[1761826685684,1.6465966,109370.0,109360.0,0.0471]
[1761826685889,1.3898,109370.0,109360.0,0.0471]
[1761826686084,1.1116,109370.0,109360.0,0.0471]
[1761826686391,1.5366766,109370.0,109360.0,0.0471]
[1761826686784,1.34088,109370.0,109360.0,0.0471]
[1761826686992,1.5586766,109370.0,109360.0,0.0471]
[1761826687690,1.16088,109370.0,109360.0,0.0471]
[1761826688290,1.3676766,109370.0,109360.0,0.0471]
[1761826688495,1.3676766,109370.0,109360.0,0.04434]
[1761826688694,1.3676766,109370.0,109350.0,0.04296]
[1761826688695,1.4476766,109370.0,109350.0,0.04296]
[1761826688994,0.5675966,109360.0,109350.0,0.05626454]
[1761826689192,0.7475966,109360.0,109350.0,0.05626454]
[1761826689390,0.7075966,109360.0,109350.0,0.05626454]
[1761826689696,0.9875966,109360.0,109350.0,0.05626454]
[1761826689896,1.0875966,109360.0,109350.0,0.01330454]
[1761826690084,1.1075966,109360.0,109350.0,0.01330454]
[1761826690290,1.1575966,109360.0,109350.0,0.01330454]
[1761826691190,0.9508,109360.0,109350.0,0.03507454]
[1761826691395,0.9508,109360.0,109350.0,0.01330454]
[1761826691695,1.11691442,109360.0,109350.0,0.01330454]
[1761826692090,1.11691442,109360.0,109350.0,0.03507454]
[1761826692287,1.11691442,109360.0,109350.0,0.01330454]
[1761826692690,0.91011782,109360.0,109350.0,0.01330454]
[1761826692893,1.11691442,109360.0,109350.0,0.01330454]
[1761826693291,1.61371102,109360.0,109350.0,0.01330454]
[1761826693489,1.61371102,109360.0,109330.0,0.0134]
[1761826693490,3.58538042,109360.0,109330.0,0.01131282]
[1761826693691,0.9283966,109340.0,109320.0,0.01350553]
[1761826693885,0.8859966,109330.0,109320.0,0.01350553]
[1761826694093,1.3159966,109330.0,109320.0,0.03527553]
[1761826694298,0.7908,109330.0,109320.0,0.03495553]
[1761826694498,1.1959966,109330.0,109320.0,0.05761553]
[1761826694693,0.9892,109330.0,109320.0,0.05761553]
[1761826695000,1.2959966,109330.0,109320.0,0.05761553]
[1761826695200,1.2959966,109330.0,109320.0,0.01350553]
[1761826695500,1.2959966,109330.0,109320.0,0.00010553]
[1761826695687,1.3059966,109330.0,109320.0,0.00010553]
[1761826695891,1.415946,109330.0,109320.0,0.00010553]
[1761826696294,1.3059966,109330.0,109320.0,0.0137]
[1761826696499,1.3141166,109330.0,109320.0,0.0137]
[1761826696801,1.24732,109330.0,109320.0,0.03515]
[1761826696995,1.4543166,109330.0,109320.0,0.06057]
[1761826697195,0.90752,109330.0,109320.0,0.06057]
[1761826697399,0.025,109320.0,109260.0,0.05687]
[1761826697701,0.5675966,109270.0,109260.0,0.05687]
[1761826697996,0.3608,109280.0,109270.0,0.04411]
[1761826698199,0.35574079,109280.0,109270.0,0.04687]
[1761826698401,0.5675966,109300.0,109290.0,0.04411]
[1761826698589,0.6175966,109300.0,109290.0,0.04411]
[1761826698789,0.4108,109300.0,109290.0,0.04411]
[1761826699006,1.0371966,109300.0,109290.0,0.04411]
[1761826699205,0.9971966,109300.0,109290.0,0.04411]
[1761826699401,0.6975966,109300.0,109290.0,0.64411]
[1761826699697,0.6975966,109300.0,109290.0,0.04411]
[1761826699698,0.5775966,109300.0,109290.0,0.04411]
[1761826699902,0.5975966,109300.0,109290.0,0.04411]
[1761826700102,0.6407966,109300.0,109290.0,0.04411]
[1761826700305,0.2499966,109290.0,109280.0,0.05492]
[1761826700514,0.0432,109280.0,109270.0,0.36415]
[1761826700811,0.6307966,109280.0,109270.0,0.04411]
[1761826701308,0.404,109290.0,109280.0,0.05781]
[1761826701508,0.454,109290.0,109280.0,0.05781]
[1761826701905,0.454,109290.0,109280.0,0.04411]
[1761826702102,0.454,109290.0,109280.0,0.05781]
[1761826702400,0.44249934,109300.0,109290.0,0.04411]
[1761826702401,0.5896466,109300.0,109290.0,0.04411]
[1761826702596,0.3608,109300.0,109290.0,0.04411]
[1761826702804,0.6107966,109310.0,109300.0,0.05781]
[1761826703000,0.6507966,109310.0,109300.0,0.05781]
[1761826703198,0.6507966,109310.0,109300.0,0.04411]
[1761826703503,0.0432,109300.0,109290.0,0.04411]
[1761826703705,0.424,109300.0,109290.0,0.04411]
[1761826704105,0.0632,109300.0,109290.0,0.04411]
[1761826704702,0.0432,109300.0,109290.0,0.04411]
[1761826704904,0.0442,109300.0,109290.0,0.04411]
[1761826705406,0.001,109300.0,109290.0,0.40767]
[1761826705809,0.001,109300.0,109290.0,0.4991759]
[1761826706107,0.3608,109320.0,109310.0,0.04411]
[1761826706503,0.3608,109320.0,109310.0,0.04687]
[1761826707095,0.3618,109320.0,109310.0,0.04687]
[1761826707502,0.3618,109320.0,109310.0,0.1355992]
[1761826707812,0.001,109320.0,109310.0,0.84677446]
[1761826708207,0.001,109320.0,109310.0,0.89577741]
[1761826708408,0.001,109320.0,109310.0,0.54816205]
[1761826709014,0.001,109320.0,109310.0,0.86840205]
[1761826709410,0.001,109320.0,109310.0,1.16701436]
[1761826710209,0.3608,109350.0,109340.0,0.05781]
[1761826710504,0.38285,109370.0,109360.0,0.05781]
[1761826710710,0.404,109370.0,109360.0,0.05781]
[1761826710905,0.3608,109370.0,109360.0,0.05781]
[1761826711096,0.404,109380.0,109370.0,0.04411]
[1761826711301,1.12515526,109380.0,109370.0,0.04411]
[1761826711610,0.12,109380.0,109370.0,0.40491]
[1761826711906,0.404,109400.0,109390.0,0.04411]
[1761826712101,0.02205,109390.0,109380.0,1.8745]
[1761826712301,0.404,109410.0,109400.0,0.05781]
[1761826712602,0.794,109410.0,109400.0,0.05781]
[1761826712909,0.684,109410.0,109400.0,0.05781]
[1761826713095,0.404,109410.0,109400.0,0.05781]
[1761826713301,0.45285,109410.0,109400.0,0.05781]
[1761826713595,0.404,109420.0,109410.0,0.04411]
[1761826713796,0.9448,109420.0,109410.0,0.04411]
[1761826713999,0.9248,109420.0,109410.0,0.04411]
[1761826715917,0.9288,109420.0,109410.0,0.04411]
[1761826716097,0.004,109420.0,109410.0,0.04411]
[1761826716409,0.004,109420.0,109410.0,0.40491]
[1761826716802,0.004,109420.0,109410.0,0.40767]
[1761826717002,0.004,109420.0,109410.0,1.00767]
[1761826717202,0.004,109420.0,109410.0,1.0990755]
[1761826717502,0.004,109420.0,109410.0,0.4990755]
[1761826717702,0.004,109420.0,109410.0,0.40767]
[1761826718103,0.004,109420.0,109410.0,0.40491]
[1761826718808,0.40942,109420.0,109410.0,0.04411]
[1761826719005,0.75703526,109420.0,109410.0,0.04411]
[1761826719201,0.76703526,109420.0,109410.0,0.04411]
[1761826719512,0.04462,109410.0,109400.0,0.05796]
[1761826719710,0.02177,109400.0,109390.0,0.38401]
[1761826719904,0.07462,109400.0,109390.0,0.40506]
[1761826720099,0.45542,109400.0,109390.0,0.04426]
[1761826720299,0.80303526,109400.0,109390.0,0.04426]
[1761826720502,0.04462,109400.0,109390.0,0.04426]
[1761826720704,0.40842,109410.0,109400.0,0.05733]
[1761826720903,0.41842,109410.0,109400.0,0.05733]
[1761826721506,0.3638,109410.0,109400.0,0.06009]
[1761826721702,0.003,109410.0,109400.0,0.42089]
[1761826722202,0.04762,109410.0,109400.0,1.01813]
[1761826722400,0.04762,109410.0,109400.0,0.41813]
[1761826722606,0.04462,109410.0,109400.0,0.05733]
[1761826723008,0.40542,109420.0,109410.0,0.04426]
[1761826723201,0.04462,109410.0,109400.0,0.05733]
[1761826723407,0.43223526,109410.0,109400.0,0.02321]
[1761826723609,0.43523526,109410.0,109400.0,0.02321]
[1761826724114,0.41523526,109410.0,109400.0,0.02321]
[1761826724304,0.06762,109410.0,109400.0,0.04426]
[1761826724505,0.06762,109410.0,109400.0,0.05733]
[1761826725620,0.003,109410.0,109400.0,0.05733]
[1761826725916,0.003,109410.0,109400.0,0.42089]
[1761826726117,0.003,109410.0,109400.0,0.41813]
[1761826726315,0.003,109410.0,109400.0,1.1095439]
[1761826726509,0.3608,109440.0,109430.0,0.04426]
[1761826726709,0.47542,109440.0,109430.0,0.04426]
[1761826727018,0.3608,109440.0,109430.0,0.04702]
[1761826727408,0.3608,109440.0,109430.0,0.04426]
[1761826728108,0.75303526,109440.0,109430.0,0.04426]
[1761826728306,0.79303526,109440.0,109430.0,0.04426]
[1761826728504,0.42542,109440.0,109430.0,0.04426]
[1761826728710,0.41142,109440.0,109430.0,0.04426]
[1761826729022,0.43142,109440.0,109430.0,0.04426]
[1761826729223,0.3868,109440.0,109430.0,0.04702]
[1761826729411,0.006,109440.0,109430.0,0.40782]
[1761826729608,0.006,109440.0,109430.0,0.40506]
[1761826730717,0.006,109440.0,109430.0,0.40782]
[1761826731119,0.006,109440.0,109430.0,0.4992078]
[1761826731321,0.006,109440.0,109430.0,0.40782]
[1761826731911,0.3608,109450.0,109440.0,0.05733]
[1761826732112,0.40542,109450.0,109440.0,0.02321]
[1761826732318,0.04462,109440.0,109430.0,0.40606]
[1761826732619,0.02177,109440.0,109430.0,0.40606]
[1761826733409,0.73018526,109450.0,109440.0,0.05733]
[1761826733621,0.42542,109450.0,109440.0,0.05733]
[1761826734124,0.40257,109450.0,109440.0,0.05733]
[1761826735111,0.3808,109450.0,109440.0,0.06009]
[1761826735313,0.3608,109450.0,109440.0,0.05733]
[1761826735513,0.001,109450.0,109440.0,0.5122695]
[1761826736724,0.001,109450.0,109440.0,0.5095095]
[1761826738017,0.001,109450.0,109440.0,0.5122695]
[1761826738522,0.001,109450.0,109440.0,0.85988476]
[1761826738523,0.00068892,109450.0,109440.0,0.85988476]
[1761826738719,0.75303526,109490.0,109460.0,0.01307]
[1761826738918,0.40542,109480.0,109470.0,0.04426]
[1761826739220,0.80683526,109480.0,109470.0,0.04426]
[1761826739427,0.04462,109470.0,109460.0,0.04426]
[1761826739627,0.44542,109470.0,109460.0,0.04426]
[1761826739925,0.79303526,109470.0,109460.0,0.04426]
[1761826740115,0.79303526,109470.0,109460.0,0.02321]
[1761826740318,0.79303526,109470.0,109440.0,0.72683264]
[1761826740519,0.39223526,109450.0,109440.0,0.08997264]
[1761826740714,0.39223526,109450.0,109440.0,0.04426]
[1761826740915,0.04462,109440.0,109430.0,0.40506]
[1761826741119,0.04462,109430.0,109410.0,0.39354046]
[1761826741324,0.04462,109420.0,109410.0,0.43780046]
[1761826741526,0.08462,109420.0,109410.0,0.43780046]
[1761826741726,0.06462,109420.0,109410.0,0.40515782]
[1761826742028,0.80657526,109420.0,109410.0,9.782e-05]
[1761826742429,1.40657526,109420.0,109410.0,0.00209782]
[1761826742621,1.08657526,109420.0,109410.0,0.00209782]
[1761826743022,1.08657526,109420.0,109410.0,9.782e-05]
[1761826743218,0.04462,109390.0,109380.0,1.90651264]
[1761826743623,0.3608,109410.0,109380.0,1.90651264]
[1761826743827,0.40542,109410.0,109400.0,0.05733]
[1761826744218,0.3608,109420.0,109410.0,0.04426]
[1761826744524,0.40542,109430.0,109420.0,0.05733]
[1761826744716,0.40553123,109430.0,109420.0,0.05733]
[1761826745323,0.38268123,109430.0,109420.0,0.05733]
[1761826745624,0.36091123,109430.0,109420.0,0.06009]
[1761826745929,0.36091123,109430.0,109420.0,0.05733]
[1761826746123,0.36091123,109430.0,109420.0,0.06009]
[1761826746430,0.04424123,109430.0,109420.0,0.05833]
[1761826746926,0.04424123,109430.0,109420.0,0.06109]
[1761826747127,0.04424123,109430.0,109420.0,0.05833]
[1761826747517,0.04424123,109430.0,109420.0,0.45177264]
[1761826747714,0.04424123,109430.0,109420.0,0.45077264]
[1761826747916,0.00011123,109430.0,109420.0,0.45453264]
[1761826749119,0.40493,109460.0,109450.0,0.04543]
[1761826749430,0.3608,109470.0,109460.0,0.02319]
[1761826749634,0.42493,109470.0,109460.0,0.04543]
[1761826749818,0.42493,109470.0,109460.0,0.05926]
[1761826750024,0.42493,109470.0,109460.0,0.04543]
[1761826750226,0.42493,109470.0,109450.0,0.07815435]
[1761826750227,0.04413,109460.0,109450.0,0.07815435]
[1761826750426,0.40493,109470.0,109460.0,0.05926]
[1761826750832,0.04413,109470.0,109460.0,0.05926]
[1761826751624,0.68108,109480.0,109470.0,0.04543]
[1761826751824,0.79521,109480.0,109470.0,0.04543]
[1761826752029,0.43441,109480.0,109470.0,0.04543]
[1761826752228,0.36441,109480.0,109470.0,0.07815435]
[1761826752631,0.02304,109480.0,109470.0,0.07815435]
[1761826752932,0.04413,109490.0,109480.0,0.05926]
[1761826753228,0.04413,109490.0,109480.0,0.09197393]
[1761826753535,0.77254526,109490.0,109480.0,0.102671]
[1761826753832,0.81254526,109490.0,109480.0,0.02452707]
[1761826754028,0.44493,109490.0,109480.0,0.02452707]
[1761826754232,0.04413,109480.0,109470.0,0.07814393]
[1761826754436,0.04413,109480.0,109470.0,0.10081615]
[1761826754637,0.06413,109480.0,109470.0,0.10081615]
[1761826755134,0.07686,109480.0,109470.0,0.10081615]
[1761826755426,0.08086,109480.0,109470.0,0.07991974]
[1761826755831,0.08086,109480.0,109470.0,0.07720615]
[1761826756019,0.06813,109480.0,109470.0,0.10004615]
[1761826756224,0.004,109480.0,109470.0,0.10004615]
[1761826756837,0.004,109480.0,109470.0,0.81122141]
[1761826757137,1.73105526,109480.0,109460.0,0.04900295]
[1761826757328,1.73105526,109480.0,109460.0,0.03271035]
[1761826757329,0.40532,109470.0,109460.0,0.03271035]
[1761826757528,0.04452,109460.0,109450.0,0.06919542]
[1761826757726,0.11452,109460.0,109450.0,0.06919542]
[1761826757928,0.48805,109460.0,109450.0,0.02453542]
[1761826758625,0.83566526,109460.0,109450.0,0.02453542]
[1761826759040,0.81566526,109460.0,109450.0,0.02453542]
[1761826759222,0.61532,109460.0,109450.0,0.06919542]
[1761826759424,0.61532,109460.0,109450.0,0.04466]
[1761826759737,0.04452,109450.0,109440.0,0.08231542]
[1761826760036,0.05452,109450.0,109440.0,0.40495542]
[1761826760238,0.01,109450.0,109440.0,0.76575542]
[1761826760533,0.01,109450.0,109440.0,0.74122]
[1761826760730,0.38303,109470.0,109460.0,0.05778]
[1761826760929,0.40532,109470.0,109460.0,0.05778]
[1761826762438,0.04452,109460.0,109450.0,0.39155471]
[1761826764134,0.6120872,109470.0,109460.0,0.04466]
[1761826764330,0.6120872,109470.0,109460.0,0.05778]
[1761826764938,0.6120872,109470.0,109460.0,0.04466]
[1761826765240,0.6120872,109470.0,109460.0,0.05778]
[1761826766542,0.6120872,109470.0,109460.0,0.38014]
[1761826766837,0.38403,109470.0,109460.0,0.38014]
[1761826767139,0.02323,109470.0,109460.0,0.38014]
[1761826767532,0.001,109470.0,109460.0,0.76547471]
[1761826767933,0.5675672,109490.0,109460.0,0.76547471]
[1761826768134,0.40939367,109530.0,109510.0,0.1366011]
[1761826768335,0.03237557,109550.0,109520.0,0.38128]
[1761826768529,0.2508472,109550.0,109540.0,0.02248]
[1761826768733,0.9724472,109550.0,109540.0,0.02248]
[1761826768934,0.76568,109550.0,109540.0,0.02248]
[1761826769241,0.04408,109540.0,109530.0,0.32372]
[1761826769435,0.40488,109540.0,109530.0,0.369]
[1761826769834,0.04408,109540.0,109530.0,0.369]
[1761826770041,0.02209,109540.0,109530.0,0.39353471]
[1761826770242,0.02209,109540.0,109530.0,0.369]
[1761826770540,0.04408,109540.0,109530.0,0.369]
[1761826770741,0.04408,109530.0,109520.0,0.44445471]
[1761826770938,0.04408,109530.0,109520.0,0.76805471]
[1761826771144,0.04408,109530.0,109520.0,0.41992]
[1761826771341,0.6116472,109530.0,109520.0,0.38268]
[1761826771542,0.6116472,109530.0,109520.0,0.32356]
[1761826771947,0.40488,109530.0,109520.0,0.02248]
[1761826772338,0.04408,109520.0,109510.0,0.3688]
[1761826772538,0.04408,109520.0,109510.0,0.36876]
[1761826773049,0.6116472,109520.0,109510.0,0.02248]
[1761826773262,0.6116472,109520.0,109490.0,0.4521345]
[1761826773263,0.04408,109500.0,109490.0,0.43061471]
[1761826773545,0.5808272,109520.0,109500.0,0.05912]
[1761826773546,0.04408,109510.0,109500.0,0.05912]
[1761826774147,0.04308,109510.0,109500.0,0.38252]
[1761826776147,0.04308,109510.0,109490.0,0.38533471]
[1761826776351,0.2571772,109500.0,109490.0,0.02453471]
[1761826776641,0.04496,109490.0,109480.0,0.44253471]
[1761826776847,0.04496,109490.0,109480.0,0.76585471]
[1761826777946,0.04496,109490.0,109480.0,0.44253471]
[1761826778146,0.04496,109490.0,109480.0,0.76585471]
[1761826778653,0.04496,109490.0,109480.0,0.08173471]
[1761826778843,0.02238,109480.0,109470.0,0.38533471]
[1761826779045,0.04496,109480.0,109470.0,0.75185471]
[1761826779240,0.40576,109490.0,109480.0,0.05604]
[1761826779546,0.36825,109500.0,109480.0,0.05604]
[1761826779547,0.3608,109500.0,109490.0,0.04336]
[1761826779737,0.3608,109510.0,109500.0,0.05604]
[1761826779939,0.40576,109520.0,109510.0,0.02222]
[1761826780248,0.40576,109520.0,109510.0,0.04336]
[1761826780547,0.3608,109520.0,109510.0,0.06785074]
[1761826780748,0.40576,109530.0,109520.0,0.04336]
[1761826781146,0.6125272,109530.0,109520.0,0.04336]
[1761826782647,0.40576,109530.0,109520.0,0.05604]
[1761826783042,0.40576,109540.0,109530.0,0.04336]
[1761826783349,0.38318,109540.0,109530.0,0.04336]
[1761826783751,0.04496,109550.0,109540.0,0.05604]
[1761826784049,0.40576,109560.0,109550.0,0.04336]
[1761826784952,0.40576,109560.0,109550.0,0.36688]
[1761826785447,0.04496,109560.0,109550.0,0.36688]
[1761826786449,0.40576,109560.0,109550.0,0.36688]
[1761826786948,0.3648,109560.0,109550.0,0.36788]
[1761826787253,0.004,109560.0,109550.0,0.75317074]
[1761826788251,0.004,109560.0,109550.0,0.72868]
[1761826788552,0.5675672,109580.0,109550.0,0.72868]
[1761826788553,0.40576,109580.0,109570.0,0.04336]
[1761826789253,0.6125272,109580.0,109570.0,0.04336]
[1761826789450,0.6125272,109580.0,109560.0,0.05604]
[1761826789451,0.04496,109570.0,109560.0,0.05604]
[1761826789752,0.6125272,109570.0,109540.0,0.39797074]
[1761826790052,0.04496,109550.0,109540.0,0.74024]
[1761826790451,0.2517272,109550.0,109540.0,0.38302]
[1761826790647,0.04496,109540.0,109530.0,0.40416]
[1761826790843,0.2517272,109540.0,109530.0,0.7276]
[1761826791038,0.2517272,109540.0,109530.0,0.40416]
[1761826791353,0.2517272,109540.0,109530.0,0.02222]
[1761826791551,0.2817272,109540.0,109520.0,0.69692]
[1761826791851,0.04496,109530.0,109520.0,0.36676]
[1761826792050,0.04296,109530.0,109520.0,0.36676]
[1761826792251,0.2497272,109530.0,109520.0,0.04336]
[1761826792448,0.04296,109530.0,109520.0,0.04336]
[1761826792752,0.04296,109530.0,109520.0,0.04436]
[1761826793548,0.04296,109530.0,109520.0,0.05704]
[1761826793750,0.04296,109530.0,109520.0,0.05604]
[1761826794951,0.5675672,109540.0,109520.0,0.05604]
[1761826794952,0.38318,109550.0,109540.0,0.02222]
[1761826795158,0.46576,109550.0,109540.0,0.05604]
[1761826795558,0.10496,109550.0,109540.0,0.05604]
[1761826795957,0.48576,109550.0,109540.0,0.05604]
[1761826796453,0.6945272,109550.0,109540.0,0.02222]
[1761826796661,0.04496,109530.0,109520.0,0.44133074]
[1761826796861,0.04496,109520.0,109510.0,0.40751074]
[1761826797165,0.08496,109520.0,109510.0,0.42865074]
[1761826797461,0.10496,109520.0,109510.0,0.42865074]
[1761826797653,0.46576,109520.0,109510.0,0.06785074]
[1761826798252,0.44576,109520.0,109510.0,0.06785074]
[1761826798455,0.46576,109520.0,109510.0,0.06785074]
[1761826799363,0.46576,109520.0,109510.0,0.07691781]
[1761826800062,0.44576,109520.0,109510.0,0.07591781]
[1761826800459,0.46576,109520.0,109510.0,0.07591781]
[1761826801161,0.04,109520.0,109510.0,0.28268501]
[1761826801356,0.40576,109530.0,109520.0,0.05604]
[1761826801660,0.42576,109530.0,109520.0,0.06788042]
[1761826801872,0.5782972,109540.0,109530.0,0.04336]
[1761826801873,0.40576,109540.0,109530.0,0.04336]
[1761826802053,0.54576,109540.0,109530.0,0.04336]
[1761826802249,0.54576,109540.0,109530.0,0.06788042]
[1761826802862,0.40576,109540.0,109530.0,0.06788042]
[1761826803066,0.04496,109540.0,109530.0,0.06788042]
[1761826803267,0.04696,109540.0,109530.0,0.06788042]
[1761826803559,0.04496,109530.0,109520.0,0.02452042]
[1761826803858,0.6825272,109530.0,109520.0,0.02452042]
[1761826804074,0.6325272,109530.0,109520.0,0.02452042]
[1761826804274,0.42576,109530.0,109520.0,0.02452042]
[1761826804476,0.6525272,109530.0,109520.0,0.02452042]
[1761826804677,0.6325272,109530.0,109520.0,0.02452042]
[1761826805069,0.6525272,109530.0,109520.0,0.02452042]
[1761826805376,0.44576,109530.0,109520.0,0.02452042]
[1761826805572,0.6525272,109530.0,109520.0,0.02452042]
[1761826807573,0.6325272,109530.0,109520.0,0.02452042]
[1761826807765,0.04547,109520.0,109510.0,0.03255781]
[1761826807970,0.6430372,109520.0,109510.0,0.03255781]
[1761826808775,0.6558672,109520.0,109510.0,0.05710416]
[1761826809482,0.04464,109510.0,109500.0,0.02465176]
[1761826809786,0.7022072,109510.0,109500.0,0.02465176]
[1761826810274,0.7022072,109510.0,109500.0,0.00010541]
[1761826810580,1.8648872,109510.0,109500.0,0.00010541]
[1761826810781,1.6148872,109510.0,109500.0,0.00010541]
[1761826810973,1.7176072,109510.0,109500.0,0.00010541]
[1761826811170,1.50812,109510.0,109500.0,0.00010541]
[1761826811483,0.78812,109510.0,109500.0,0.05770541]
[1761826811780,0.78812,109510.0,109500.0,0.08225176]
[1761826812576,1.05812,109510.0,109500.0,0.08225176]
[1761826812774,1.2648872,109510.0,109500.0,0.02465176]
[1761826813371,1.2648872,109510.0,109500.0,0.00010541]
[1761826813978,1.3648872,109510.0,109500.0,0.00010541]
[1761826815181,0.81503,109510.0,109500.0,0.05676541]
[1761826815379,0.4337,109510.0,109500.0,0.04585176]
[1761826815885,0.4337,109510.0,109500.0,0.06790176]
[1761826818398,1.1704672,109510.0,109500.0,0.02465176]
[1761826818578,1.1928272,109510.0,109500.0,0.00010541]
[1761826818781,1.4628272,109510.0,109500.0,0.00010541]
[1761826818982,1.4655472,109510.0,109500.0,0.00010541]
[1761826819181,1.4628272,109510.0,109500.0,0.00010541]
[1761826819581,1.3255472,109510.0,109500.0,0.00010541]
[1761826819786,1.3228272,109510.0,109500.0,0.00010541]
[1761826821176,1.2728272,109510.0,109500.0,0.00010541]
[1761826821377,1.4728272,109510.0,109500.0,0.00010541]
[1761826823781,1.7028272,109510.0,109500.0,0.00010541]
[1761826824187,1.7055472,109510.0,109500.0,0.00010541]
[1761826824393,0.04892,109500.0,109490.0,0.02454635]
[1761826824593,0.04292,109490.0,109480.0,0.02454635]
[1761826824790,0.05563,109480.0,109470.0,0.04575227]
[1761826824985,0.9031972,109480.0,109470.0,0.02120592]
[1761826825178,0.9631972,109480.0,109470.0,0.04575227]
[1761826825379,1.40313295,109480.0,109470.0,0.02120592]
[1761826825589,1.40589295,109480.0,109470.0,0.02120592]
[1761826825991,0.04292,109470.0,109460.0,0.02454635]
[1761826826297,0.0532,109460.0,109450.0,0.02454635]
[1761826826501,0.97059742,109460.0,109450.0,0.02454635]
[1761826826795,0.04292,109450.0,109440.0,0.03722635]
[1761826826996,0.483785,109450.0,109440.0,0.02454635]
[1761826827201,0.433785,109450.0,109440.0,0.06866635]
[1761826827492,0.433785,109450.0,109440.0,0.08207635]
[1761826828394,0.453785,109450.0,109440.0,0.08207635]
[1761826828889,0.433785,109450.0,109440.0,0.08207635]
[1761826829088,0.453785,109450.0,109440.0,0.08407635]
[1761826830189,0.433785,109450.0,109440.0,0.08407635]
[1761826830385,6.5e-05,109450.0,109440.0,0.82403158]
[1761826830581,6.5e-05,109450.0,109440.0,0.45288781]
[1761826830790,0.423785,109450.0,109440.0,0.08403894]
[1761826830992,0.413785,109450.0,109440.0,0.02650894]
[1761826831194,0.072985,109450.0,109440.0,0.07062894]
[1761826831401,0.072985,109450.0,109440.0,0.08403894]
[1761826831886,0.052985,109450.0,109440.0,0.08403894]
[1761826832088,0.072985,109450.0,109440.0,0.08403894]
[1761826832696,0.433785,109450.0,109440.0,0.08403894]
[1761826832896,0.433785,109450.0,109440.0,0.07062894]
[1761826833998,0.433785,109450.0,109440.0,0.04857894]
[1761826834793,0.072985,109450.0,109440.0,0.08443894]
[1761826835196,0.042985,109450.0,109440.0,0.08443894]
[1761826838800,0.403785,109450.0,109440.0,0.08443894]
[1761826838990,0.463785,109450.0,109440.0,0.08443894]
[1761826839197,0.433785,109450.0,109440.0,0.04857894]
[1761826839502,0.78038242,109450.0,109440.0,0.02650894]
[1761826841004,0.433785,109450.0,109440.0,0.04855894]
[1761826841307,0.755105,109450.0,109440.0,0.04855894]
[1761826841806,0.755105,109450.0,109440.0,0.07041894]
[1761826842404,0.755105,109450.0,109440.0,0.08422894]
[1761826842707,0.043195,109450.0,109440.0,0.11678675]
[1761826842911,0.063195,109450.0,109440.0,0.11678675]
[1761826843210,0.45979242,109450.0,109440.0,0.02650894]
[1761826843507,0.45979242,109450.0,109440.0,0.04855894]
[1761826843701,0.113195,109450.0,109440.0,0.04855894]
[1761826844006,0.113195,109450.0,109440.0,0.07041894]
[1761826845111,0.473995,109450.0,109440.0,0.07041894]
[1761826845300,0.82059242,109450.0,109440.0,0.07041894]
[1761826845807,0.473995,109450.0,109440.0,0.07041894]
[1761826846011,0.82059242,109450.0,109440.0,0.07041894]
[1761826846703,0.82059242,109450.0,109440.0,0.02650894]
[1761826847105,0.82059242,109450.0,109440.0,0.04855894]
[1761826847706,0.82059242,109450.0,109440.0,0.02650894]
[1761826847905,0.82059242,109450.0,109440.0,0.04855894]
[1761826848105,0.92059242,109450.0,109440.0,0.02650894]
[1761826849315,1.13659242,109450.0,109440.0,0.04855894]
[1761826850009,1.03659242,109450.0,109440.0,0.04855894]
[1761826850207,1.03659242,109450.0,109440.0,0.10297675]